Cogmind - Beta 10.2 @@@ ROGUE MODE // 2021.12.15 @ 17:28:36 Player: pGoos Result: Destroyed by Y-45 Defender with Heavy Assault Rifle Performance ------------- Evolutions (1) 500 Regions Visited (4) 800 Robots Destroyed (15) 75 Value Destroyed (287) 287 Prototype IDs (0) 0 Alien Tech Used (0) 0 Bonus (0) 0 TOTAL SCORE: 1662 Bonus ------- None Cogmind --------- Core Integrity 0/400 Matter 232/300 Energy 85/100 System Corruption 0% Temperature Cool (9) Movement Core (600) Ox11 Location -9/Mines Parts ------- > --- POWER (1) -------- (None) > --- PROPULSION (2) --- (None) > --- UTILITY (4) ------ Large Storage Unit Large Storage Unit Improved Targeting Computer > --- WEAPON (2) ------- Spread Laser > --- INVENTORY (16) --- Heat Sink Medium Storage Unit Large Storage Unit Improved Targeting Computer Improved Targeting Computer Improved Targeting Computer Reactive Plating Improved Datajack Improved Datajack Peak State ------------ > --- POWER ------------ Light Ion Engine > --- PROPULSION ------- Wheel > --- UTILITY ---------- Large Storage Unit Large Storage Unit Improved Targeting Computer Reactive Plating > --- WEAPON ----------- Mini Grenade Launcher Mining Claw > --- INVENTORY -------- Heat Sink Medium Storage Unit Large Storage Unit Improved Targeting Computer Improved Targeting Computer Improved Targeting Computer Reactive Plating Improved Datajack Improved Datajack [Rating: 13] Favorites ----------- Power Ion Engine Engine Ion Engine Propulsion Aluminum Leg Leg Aluminum Leg Wheel Wheel Utility Large Storage Unit Device Weight Redist. System Storage Large Storage Unit Processor Improved Targeting Computer Protection Reactive Plating Weapon Assault Rifle Energy Gun Medium Laser Ballistic Gun Assault Rifle Launcher Mini Grenade Launcher Slashing Weapon Mining Claw Build | -11 -10 -10 -9 -9 ------- Run | Scr Mat Min Mat Min Slots Evolved 2 | . . . 2 . Power . | . . . . . Propulsion . | . . . . . Utility 2 | . . . 2 . Weapon . | . . . . . Parts Attached 27 | 6 3 3 14 1 Power 4 | 1 1 1 1 . Engine 4 | 1 1 1 1 . Core . | . . . . . Reactor . | . . . . . Propulsion 6 | 2 1 2 1 . Treads . | . . . . . Leg 5 | 2 1 2 . . Wheel 1 | . . . 1 . Hover . | . . . . . Flight . | . . . . . Utility 8 | 1 1 . 6 . Device 1 | . . . 1 . Storage 5 | 1 1 . 3 . Processor 1 | . . . 1 . Hackware . | . . . . . Protection 1 | . . . 1 . Artifact . | . . . . . Weapon 9 | 2 . . 6 1 Energy Gun 4 | 1 . . 2 1 Energy Cannon . | . . . . . Ballistic Gun 3 | 1 . . 2 . Ballistic Cannon . | . . . . . Launcher 1 | . . . 1 . Special Weapon . | . . . . . Impact Weapon . | . . . . . Slashing Weapon 1 | . . . 1 . Piercing Weapon . | . . . . . Special Melee Weapon . | . . . . . Unidentified Prototypes . | . . . . . Parts Lost 19 | . . 5 9 5 Power 3 | . . 1 1 1 Propulsion 5 | . . 2 2 1 Utility 3 | . . . 2 1 Weapon 8 | . . 2 4 2 Highest Loss Streak 9 | . . 5 9 5 Average Slot Usage (%) 88 | . 96 73 89 60 Engine 10 | . 14 13 8 5 Leg 20 | . 28 28 14 . Wheel 1 | . . . 2 1 Device 3 | . . . 7 . Storage 27 | . 25 28 29 22 Processor 1 | . . . 1 11 Protection 1 | . . . 1 7 Energy Gun 8 | . 14 1 7 1 Ballistic Gun 8 | . 14 1 8 . Launcher 1 | . . . 2 3 Slashing Weapon 1 | . . . 3 7 Naked Turns . | . . . . . Heaviest Build 48 | 11 29 29 48 48 Greatest Support 26 | 20 20 20 26 10 Greatest Overweight (x) 15 | 1 1 2 11 15 Average Overweight (x) 1 | . . . 1 8 Largest Inventory Capacity 16 | 6 12 12 16 16 Average Capacity 13 | 5 10 12 15 16 Most Carried 12 | 2 12 11 11 9 Average Carried 7 | 1 5 8 8 9 Final Capacity 16 | 6 12 12 16 16 Final Carried 11 | 2 11 8 9 9 Class Distribution -------------------- 100% | Mutant Dominant Class ---------------- Mutant | -10/Materials Mutant | -10/Mines Mutant | -9/Materials Mutant | -9/Mines Resources | -11 -10 -10 -9 -9 ----------- Run | Scr Mat Min Mat Min Matter Collected 481 | 240 134 21 86 . Remotely . | . . . . . Salvage Created 424 | . 233 . 191 . Parts 26 | . 15 . 11 . Haulers Intercepted 1 | . 1 . . . Recyclers Shooed . | . . . . . Parts Field Recycled . | . . . . . Retrieved Matter . | . . . . . Parts Self-Destructed . | . . . . . Prevented . | . . . . . Kills | -11 -10 -10 -9 -9 ------- Run | Scr Mat Min Mat Min Combat Hostiles Destroyed 9 | . 5 . 4 . Guns 6 | . 5 . 1 . AOE 3 | . . . 3 . Classes Destroyed 6 | . 5 . 1 . Builder 4 | . 1 . 3 . Tunneler 1 | . 1 . . . Hauler 1 | . 1 . . . Swarmer 3 | . 3 . . . Grunt 5 | . 2 . 3 . Sentry 1 | . . . 1 . Best Kill Streak 6 | . 6 . 4 . Combat Bots Only 4 | . 4 . 3 . Max Kills in Single Turn 3 | . 2 . 3 . Gunslinging 1 | . 1 . . . Exploded 2 | . . . 2 . Melee . | . . . . . Uniques/NPCs Destroyed . | . . . . . Combat | -11 -10 -10 -9 -9 -------- Run | Scr Mat Min Mat Min Damage Taken 1972 | . 192 385 752 643 Core 503 | . 46 52 168 237 Absorbed by Shields . | . . . . . Core Remaining (%) 80 | 100 . 60 . . Volleys Fired 53 | . 28 2 23 . Largest 2 | . 2 2 2 . Hottest 70 | . 70 70 70 . Shots Fired 92 | . 56 4 32 . Gun 89 | . 56 4 29 . Cannon . | . . . . . Launcher 3 | . . . 3 . Special . | . . . . . Kinetic 52 | . 28 2 22 . Thermal 37 | . 28 2 7 . Explosive 3 | . . . 3 . Electromagnetic . | . . . . . Robot Hit Streak 8 | . 8 2 5 . Robot Miss Streak 4 | . 3 1 4 . Penetration Max . | . . . . . Secondary Targets 1 | . 1 . . . Max Gunslinging Chain 1 | . 1 . . . Shots Hit Robots 60 | . 35 3 20 2 Core Hits 28 | . 11 . 17 . Critical Hits . | . . . . . Critical Kills . | . . . . . Critical Parts Destroyed . | . . . . . Melee Attacks 15 | . . . 12 3 Impact . | . . . . . Slashing 15 | . . . 12 3 Piercing . | . . . . . Sneak Attacks 2 | . . . 2 . Combat Hostiles . | . . . . . Follow-up Attacks . | . . . . . Damage Inflicted 1007 | . 431 38 493 45 Guns 635 | . 431 38 166 . Cannons . | . . . . . Explosions 180 | . . . 180 . Melee 192 | . . . 147 45 Ramming . | . . . . . Kinetic 309 | . 180 13 116 . Thermal 326 | . 251 25 50 . Explosive 180 | . . . 180 . Electromagnetic . | . . . . . Impact . | . . . . . Slashing 192 | . . . 147 45 Piercing . | . . . . . Highest Corruption . | . . . . . Average Corruption . | . . . . . Corruption Purged . | . . . . . Overload Shots . | . . . . . Overflow Damage . | . . . . . Projectiles . | . . . . . Explosions . | . . . . . Melee . | . . . . . Knockbacks . | . . . . . Impact . | . . . . . Kinetic . | . . . . . Secondary . | . . . . . Self-Inflicted Damage 10 | . . . 10 . Shots 1 | . . . 1 . Rammed . | . . . . . Targets Rammed . | . . . . . Kicked . | . . . . . Crushed . | . . . . . Highest Temperature 42 | . 42 15 39 1 Average Temperature 14 | . 14 9 16 1 Received Heat Transfer 621 | . 60 . 354 207 Siege Activations . | . . . . . Robots Corrupted . | . . . . . Combat Hostiles . | . . . . . Parts Fried . | . . . . . Impact Corruptions . | . . . . . Robots Melted . | . . . . . Combat Hostiles . | . . . . . Parts Melted 1 | . 1 . . . Heat Transferred 962 | . 740 74 148 . Parts Sabotaged . | . . . . . Parts Stolen . | . . . . . Parts Stripped . | . . . . . Power Chain Reactions . | . . . . . Missiles Intercepted . | . . . . . Alert | -11 -10 -10 -9 -9 ------- Run | Scr Mat Min Mat Min Peak Influence 221 | . 221 27 129 54 Initial 49 | . . 12 5 49 Average 35 | . 58 10 29 36 Maximum Alert Level 1 | . 1 . . . Low Security (%) 97 | 100 92 100 100 100 Level 1 2 | . 7 . . . Level 2 . | . . . . . Level 3 . | . . . . . Level 4 . | . . . . . Level 5 . | . . . . . High Security . | . . . . . Max Security . | . . . . . Squads Dispatched 1 | . 1 . . . Investigation . | . . . . . Extermination . | . . . . . Reinforcement 1 | . 1 . . . Assault . | . . . . . Garrison . | . . . . . Intercept . | . . . . . Construction Impeded . | . . . . . Haulers Reinforced . | . . . . . Stealth | -11 -10 -10 -9 -9 --------- Run | Scr Mat Min Mat Min Distress Signals 3 | . 1 1 1 . Communications Jammed . | . . . . . Distress Signals . | . . . . . Times Spotted 38 | . 13 17 6 2 Peak Tracking Total 11 | . 4 11 4 2 Tactical Retreats 4 | . 2 1 1 . Traps | -11 -10 -10 -9 -9 ------- Run | Scr Mat Min Mat Min Traps Triggered . | . . . . . Indirectly . | . . . . . Trap Hack Attempts . | . . . . . Triggered . | . . . . . Disarmed 4 | . . . 4 . Reprogrammed . | . . . . . Reused . | . . . . . Traps Extracted . | . . . . . Installed . | . . . . . Triggered . | . . . . . Machines | -11 -10 -10 -9 -9 ---------- Run | Scr Mat Min Mat Min Machines Disabled . | . . . . . Max in Single Turn . | . . . . . Machines Sabotaged . | . . . . . Garrisons Compromised . | . . . . . Overloaded Fab Kills . | . . . . . Fab Network Shutdowns . | . . . . . Hacking | -11 -10 -10 -9 -9 --------- Run | Scr Mat Min Mat Min Machines Accessed 4 | . 2 . 2 . Terminals 4 | . 2 . 2 . Fabricators . | . . . . . Repair Stations . | . . . . . Recycling Units . | . . . . . Scanalyzers . | . . . . . Garrison Access . | . . . . . Total Hacks 18 | . 9 . 9 . Successful 14 | . 6 . 8 . Failed 4 | . 3 . 1 . Catastrophic . | . . . . . Database Lockouts . | . . . . . Manual 1 | . 1 . . . Terminals 18 | . 9 . 9 . Fabricators . | . . . . . Repair Stations . | . . . . . Recycling Units . | . . . . . Scanalyzers . | . . . . . Garrison Access . | . . . . . Terminal Hacks 14 | . 6 . 8 . Record 2 | . 2 . . . Alert Level 1 | . . . 1 . Locate Traps 2 | . . . 2 . Disarm Traps 1 | . . . 1 . Dispatch Records 1 | . . . 1 . Maintenance Status 1 | . 1 . . . Patrol Status 1 | . 1 . . . Investigation Status 1 | . 1 . . . Assault Status 1 | . . . 1 . Recall Investigation 1 | . . . 1 . Zone Layout 2 | . 1 . 1 . Fabricator Hacks . | . . . . . Repair Station Hacks . | . . . . . Recycling Unit Hacks . | . . . . . Scanalyzer . | . . . . . Garrison Access Hacks . | . . . . . Unauthorized Hacks . | . . . . . Terminals . | . . . . . Fabricators . | . . . . . Repair Stations . | . . . . . Recycling Units . | . . . . . Scanalyzers . | . . . . . Garrison Access . | . . . . . Data Cores Recovered . | . . . . . Used . | . . . . . Hacking Detections 2 | . 1 . 1 . Full Trace Events 1 | . . . 1 . Feedback Events . | . . . . . Feedback Blocked . | . . . . . Robot Schematics Acquired . | . . . . . Robots Built . | . . . . . Matter . | . . . . . Time . | . . . . . Total Robot Build Rating . | . . . . . Part Schematics Acquired . | . . . . . Parts Built . | . . . . . Matter . | . . . . . Time . | . . . . . Total Part Build Rating . | . . . . . Parts Repaired . | . . . . . Time . | . . . . . Parts Recycled . | . . . . . Recycled Matter . | . . . . . Retrieved Matter . | . . . . . Retrieved Components . | . . . . . Parts Scanalyzed . | . . . . . Part Schematics Acquired . | . . . . . Parts Damaged . | . . . . . Bothacking | -11 -10 -10 -9 -9 ------------ Run | Scr Mat Min Mat Min Used RIF Installer . | . . . . . Robots Hacked . | . . . . . Non-combat . | . . . . . Combat . | . . . . . Robot Hacks Applied . | . . . . . Relay Couplers Released . | . . . . . Robots Rewired . | . . . . . Allies Hacked . | . . . . . Hacks Repelled . | . . . . . Allies | -11 -10 -10 -9 -9 -------- Run | Scr Mat Min Mat Min Total Allies . | . . . . . Largest Group . | . . . . . Highest-Rated Group . | . . . . . Highest-Rated Ally . | . . . . . Total Orders . | . . . . . Ally Attacks . | . . . . . Total Damage . | . . . . . Kills . | . . . . . Allies Corrupted . | . . . . . Allies Melted . | . . . . . Intel | -11 -10 -10 -9 -9 ------- Run | Scr Mat Min Mat Min Robot Analysis Total . | . . . . . Derelict Logs Recovered 3 | . . 3 . . Drone Launches . | . . . . . Drone Recoveries . | . . . . . Exploration | -11 -10 -10 -9 -9 ------------- Run | Scr Mat Min Mat Min Turns Passed 1289 | 63 422 176 576 52 Spaces Moved 699 | 46 218 111 314 10 Core 18 | 8 . . 5 5 Treads . | . . . . . Legs 603 | 38 218 111 236 . Wheels 78 | . . . 73 5 Hover . | . . . . . Flight . | . . . . . Fastest Speed 50 | 50 120 120 110 120 Average Speed 147 | 113 142 149 147 420 Slowest Speed 800 | 150 150 180 600 800 Overloaded Moves . | . . . . . Propulsion Burnouts . | . . . . . Robots Hopped . | . . . . . Cave-ins Triggered . | . . . . . Exploration Rate (%) 19 | 3 25 36 27 4 Regions Visited 4 Branch Regions 2 Pre-discovered Areas 1 | . . 1 . . Known Exits Taken . | . . . . . Unknown Exits Taken 4 | 1 1 1 1 . Scrap Searched 1 | . . 1 . . Spaces Dug 16 | . . . 16 . Terrain Destroyed 33 | . . . 33 . Melee 4 | . . . 4 . Projectile . | . . . . . AOE 29 | . . . 29 . Terrain Rammed . | . . . . . Walls Destroyed . | . . . . . Machines Disabled . | . . . . . Actions | -11 -10 -10 -9 -9 --------- Run | Scr Mat Min Mat Min Total 830 | 53 274 117 372 14 Wait 17 | . 15 2 . . Move 695 | 45 217 110 313 10 Hop . | . . . . . Pick Up 20 | 2 9 . 9 . Fast Attach 11 | 6 1 . 3 1 Attach 12 | . . 3 9 . Detach . | . . . . . Swap 4 | . 2 . 2 . Drop 3 | . 2 . 1 . Fire 53 | . 28 2 23 . Melee 15 | . . . 12 3 Ram . | . . . . . Kick . | . . . . . Crush . | . . . . . Escape Stasis . | . . . . . Rewire . | . . . . . Trap . | . . . . . Miscellaneous . | . . . . . Route ------- -11/Scrapyard -10/Materials -10/Mines -9/Materials -9/Mines History --------- Turn | Location | Event 7 | -11/Scrapyard | Discovered new exit (range 15) 64 | -11/Scrapyard | Entered Materials 326 | -10/Materials | Build established: Mutant 365 | -10/Materials | Discovered new exit (range 16) 486 | -10/Materials | Entered Mines 487 | -10/Mines | Assembled infested the area 492 | -10/Mines | Assisted by a Guerilla fighting off Assembled 537 | -10/Mines | Lost 5 parts (1p2n2w) 561 | -10/Mines | Learned Materials interactive machine intel 567 | -10/Mines | Met a Derelict bent on vengeance 644 | -10/Mines | Learned Materials security intel 647 | -10/Mines | Discovered new exit (range 7) 662 | -10/Mines | Entered Materials 662 | -9/Materials | Evolved 2 slots: Utility x2 664 | -9/Materials | Loaded intel: 18 interactive machine locations 1114 | -9/Materials | Lost 9 parts (1p2n2u4w) 1175 | -9/Materials | Discovered new exit (range 13) 1238 | -9/Materials | Entered Mines 1264 | -9/Mines | Core integrity fell below 50% 1284 | -9/Mines | Core integrity fell below 20% 1290 | -9/Mines | Destroyed by Y-45 Defender with Heavy Assault Rifle Last Messages --------------- 01199_ U-05 Engineer destroyed. 01203_ Sneak attack on U-05 Engineer. 01203_ U-05 Engineer destroyed. 01207_ Acquired Lgt. Ion Engine. 01209_ Acquired 10 matter. 01211_ Acquired 24 matter. 01212_ R-06 Scavenger collects Terrain Scan Processor. 01217_ R-06 Scavenger collects Structural Scanner. 01217_ R-06 Scavenger collects Wheel. 01221_ R-06 Scavenger collects Terrain Scan Processor. 01233_ U-05 Engineer builds a Wall. LOCATION=UNKNOWN GOAL=ESCAPE Something is scanning the area. 01244_ Wheel destroyed. 01254_ Mni. Grenade Launcher destroyed. 01263_ Lgt. Ion Engine destroyed. 01275_ Mining Claw destroyed. 01278_ Reactive Plating destroyed. 01289_ Acquired Spread Laser. Map ----- +----------------------------------------------------+ | | | | | | | | | | | | | | | | | | | | | ??????????????????????????????? | | ??????????????????????????????? | | ??????????????????????????????? | | ??????????????????????????????? | | ??????????????????????????????? | | ??????????????????????????????? | | ??????????????????????????????? | | ??????????????????????????????? | | ??????????????????????????????? | | ??????????????????????????????? | | ??????????????????????????????? | | ??????????????????????????????? | | ?????????????????????######???? | | ????????????????????##" "##??? | | ????????????????????#]! ]!#??? | | ????????????????????#!Y @!#??? | | ????????????????????## ###?? | | ????????????????????###Y/## ##? | | ???????????????????## #? | | ???????????????????# #? | | ???????????????????# #? | | ???????????????????## #? | | ????????????????????# ### #? | | ????????????????????# ??## ##? | | ???????????????????? ????####?? | | ??????????????????? ?????????? | | ?????????????????? ??????????? | | ????????????????? ??????????? | | ???????????????? ???????????? | | ??????????????? #???????????? | | ?????????????? ?????????????? | | ??????????????????????????????? | | ??????????????????????????????? | | ??????????????????????????????? | | ??????????????????????????????? | | ??????????????????????????????? | | ??????????????????????????????? | | ??????????????????????????????? | | ??????????????????????????????? | | ??????????????????????????????? | +----------------------------------------------------+ Best States ------------- Heat Dissipation 28 Energy Generation 10 Energy Capacity 350 Matter Stores 300 Matter Capacity 300 Sight Range 16 Terrain Scan Density 10 Additional Mass Support 6 Armor Coverage 150 Resistance: KI 20 Evasion (%) 40 Targeting Accuracy 6 Item Schematics ----------------- None Robot Schematics ------------------ None Fabricated ------------ Nothing Alien Tech Used ----------------- None Achievements -------------- Slippery One Challenges ------------ None Game ------ Seed LegRemoteTrap Manual? 0 Play Time 00:25:47 Cumulative 43.7 hours Start 2021.12.15 @ 15:37:40 End 2021.12.15 @ 17:28:36 Sessions 1 Manual Loads 0 Difficulty Rogue Special Mode None Game No. 60 Rogue 60 Adventurer 0 Explorer 0 Win Type - Total 0 Types 0/0/0/0/0/0/0/0/0 Lore% 20 Gallery% 30 Achievement% 21 Wizard Run 0 Options --------- ASCII 0 Keyboard 1 Movement Numpad Keybinds 0 Fullscreen 2 Font 24/Smallcaps Map View 113x50 Tactical HUD 1 Map Filters NONE Filters NONE Steam 1 RUN: c66d2b49-28eb-46f3-8114-4766eb9e1052